[Event "*** Titled Tuesday Blitz"]
[Site "Chess.com"]
[Date "2018.08.07"]
[Round "2"]
[White "platy3"]
[Black "vpantev"]
[Result "1/2-1/2"]
[WhiteElo "2720"]
[BlackElo "2511"]
[TimeControl "180+2"]
[EndTime "13:25:27 PDT"]
[Termination "Game drawn - insufficient material"]

1. e4 {[%clk 0:03:01.1]} 1... c6 {[%clk 0:02:58.7]} 2. d4 {[%clk 0:03:01.2]}
2... d5 {[%clk 0:02:58.6]} 3. e5 {[%clk 0:03:01.5]} 3... Bf5 {[%clk 0:02:59.2]}
4. Nf3 {[%clk 0:03:02.8]} 4... e6 {[%clk 0:03:00.3]} 5. Be2 {[%clk 0:03:04.2]}
5... Ne7 {[%clk 0:03:01]} 6. O-O {[%clk 0:03:05.5]} 6... Nd7 {[%clk 0:03:02.5]}
7. c3 {[%clk 0:03:00.9]} 7... c5 {[%clk 0:03:02.1]} 8. dxc5 {[%clk 0:03:00.8]}
8... Nc6 {[%clk 0:03:01.3]} 9. Be3 {[%clk 0:02:52.8]} 9... Bxc5 {[%clk
0:02:59.9]} 10. Bxc5 {[%clk 0:02:50.6]} 10... Nxc5 {[%clk 0:03:01]} 11. Bb5
{[%clk 0:02:44.9]} 11... Qb6 {[%clk 0:02:55.2]} 12. Nd4 {[%clk 0:02:46]} 12...
Bg6 {[%clk 0:02:50.8]} 13. b4 {[%clk 0:02:40]} 13... Nd7 {[%clk 0:02:50.6]} 14.
Bxc6 {[%clk 0:02:35]} 14... bxc6 {[%clk 0:02:50.8]} 15. Re1 {[%clk 0:02:30]}
15... O-O {[%clk 0:02:45.5]} 16. Nd2 {[%clk 0:02:31.3]} 16... c5 {[%clk
0:02:45.6]} 17. bxc5 {[%clk 0:02:31.8]} 17... Qxc5 {[%clk 0:02:43]} 18. N2b3
{[%clk 0:02:30.3]} 18... Qc4 {[%clk 0:02:39]} 19. h4 {[%clk 0:02:28.5]} 19... h6
{[%clk 0:02:35.6]} 20. h5 {[%clk 0:02:29.9]} 20... Bh7 {[%clk 0:02:36.4]} 21.
Re3 {[%clk 0:02:31.2]} 21... Rac8 {[%clk 0:02:32.8]} 22. Rg3 {[%clk 0:02:31.9]}
22... Kh8 {[%clk 0:02:32.8]} 23. Qg4 {[%clk 0:02:30.9]} 23... Rg8 {[%clk
0:02:33.2]} 24. Re1 {[%clk 0:02:31.7]} 24... Nc5 {[%clk 0:02:27.7]} 25. Nxc5
{[%clk 0:02:24.7]} 25... Rxc5 {[%clk 0:02:28.5]} 26. Qf4 {[%clk 0:02:21.4]}
26... Rc7 {[%clk 0:02:26.9]} 27. a3 {[%clk 0:02:17.1]} 27... Qa2 {[%clk
0:02:17.1]} 28. Nb5 {[%clk 0:02:11.3]} 28... Qc4 {[%clk 0:02:08.5]} 29. Nd4
{[%clk 0:01:54.1]} 29... a6 {[%clk 0:02:06.2]} 30. Ree3 {[%clk 0:01:44.9]} 30...
Qa4 {[%clk 0:02:01.2]} 31. Kh2 {[%clk 0:01:25.3]} 31... Qxa3 {[%clk 0:01:57.8]}
32. Rg4 {[%clk 0:01:26.3]} 32... Qc1 {[%clk 0:01:55.1]} 33. Qg3 {[%clk
0:01:05.3]} 33... a5 {[%clk 0:01:49.4]} 34. Nb5 {[%clk 0:01:05.3]} 34... Rd7
{[%clk 0:01:44.7]} 35. Nd6 {[%clk 0:01:06.1]} 35... Qb1 {[%clk 0:01:39.2]} 36.
Rf3 {[%clk 0:01:04.3]} 36... Bf5 {[%clk 0:01:40.2]} 37. Ra4 {[%clk 0:00:56.6]}
37... Ra8 {[%clk 0:01:29.3]} 38. Qf4 {[%clk 0:00:54.9]} 38... Qc2 {[%clk
0:01:25.3]} 39. Rg3 {[%clk 0:00:48.9]} 39... Rc7 {[%clk 0:01:06.5]} 40. Ra3
{[%clk 0:00:26.3]} 40... a4 {[%clk 0:00:55.2]} 41. c4 {[%clk 0:00:21.2]} 41...
dxc4 {[%clk 0:00:50.8]} 42. Rgc3 {[%clk 0:00:21.8]} 42... Qd1 {[%clk 0:00:49.7]}
43. f3 {[%clk 0:00:22.5]} 43... Qd5 {[%clk 0:00:46.8]} 44. Ra2 {[%clk
0:00:20.9]} 44... Kg8 {[%clk 0:00:45.4]} 45. Rd2 {[%clk 0:00:21.6]} 45... Qc6
{[%clk 0:00:45.8]} 46. Ra2 {[%clk 0:00:21.9]} 46... Qd5 {[%clk 0:00:44.6]} 47.
g4 {[%clk 0:00:22.7]} 47... Bd3 {[%clk 0:00:43.3]} 48. Rd2 {[%clk 0:00:21.5]}
48... Rca7 {[%clk 0:00:43.9]} 49. Ra3 {[%clk 0:00:20.1]} 49... Qc5 {[%clk
0:00:42.3]} 50. Rda2 {[%clk 0:00:18.6]} 50... Rd8 {[%clk 0:00:41.7]} 51. Kg2
{[%clk 0:00:16.5]} 51... Qc6 {[%clk 0:00:40.5]} 52. Qe3 {[%clk 0:00:15.6]} 52...
Rda8 {[%clk 0:00:39.1]} 53. Kg3 {[%clk 0:00:16.3]} 53... Ra5 {[%clk 0:00:39.4]}
54. g5 {[%clk 0:00:13.9]} 54... Qd5 {[%clk 0:00:38.3]} 55. gxh6 {[%clk
0:00:14.4]} 55... Qxe5+ {[%clk 0:00:39]} 56. Qxe5 {[%clk 0:00:15.2]} 56... Rxe5
{[%clk 0:00:40.1]} 57. hxg7 {[%clk 0:00:16.7]} 57... Kxg7 {[%clk 0:00:40.9]} 58.
h6+ {[%clk 0:00:16.8]} 58... Kf6 {[%clk 0:00:39.3]} 59. Rxa4 {[%clk 0:00:16.2]}
59... Rxa4 {[%clk 0:00:40.2]} 60. Rxa4 {[%clk 0:00:18.1]} 60... Rg5+ {[%clk
0:00:41]} 61. Kf4 {[%clk 0:00:19.1]} 61... Rh5 {[%clk 0:00:41.5]} 62. Kg4 {[%clk
0:00:15.9]} 62... Rxh6 {[%clk 0:00:41.9]} 63. Nxc4 {[%clk 0:00:17.2]} 63... Bf5+
{[%clk 0:00:41]} 64. Kg3 {[%clk 0:00:17]} 64... Rh3+ {[%clk 0:00:42]} 65. Kg2
{[%clk 0:00:18.3]} 65... Rh4 {[%clk 0:00:42]} 66. Nb6 {[%clk 0:00:18]} 66...
Rxa4 {[%clk 0:00:42.1]} 67. Nxa4 {[%clk 0:00:18.9]} 67... Ke5 {[%clk 0:00:42.8]}
68. Kg3 {[%clk 0:00:17.5]} 68... Bc2 {[%clk 0:00:35.8]} 69. Nc5 {[%clk
0:00:17.7]} 69... Kd6 {[%clk 0:00:32.5]} 70. Na6 {[%clk 0:00:17.2]} 70... Bd3
{[%clk 0:00:28.9]} 71. Nb4 {[%clk 0:00:18.1]} 71... Bb1 {[%clk 0:00:29.8]} 72.
Kf4 {[%clk 0:00:15.8]} 72... f6 {[%clk 0:00:30.5]} 73. Ke3 {[%clk 0:00:15]}
73... Kc5 {[%clk 0:00:29.9]} 74. Na6+ {[%clk 0:00:14.4]} 74... Kd6 {[%clk
0:00:29.9]} 75. Kd4 {[%clk 0:00:14.8]} 75... Bc2 {[%clk 0:00:29.4]} 76. Nb4
{[%clk 0:00:14.2]} 76... Bb1 {[%clk 0:00:29.6]} 77. f4 {[%clk 0:00:15.1]} 77...
Kc7 {[%clk 0:00:28.5]} 78. Na6+ {[%clk 0:00:08.5]} 78... Kd6 {[%clk 0:00:29.3]}
79. Nc5 {[%clk 0:00:09.3]} 79... Ke7 {[%clk 0:00:27.1]} 80. Ke3 {[%clk
0:00:09.7]} 80... Kd6 {[%clk 0:00:27.5]} 81. Nb3 {[%clk 0:00:10.9]} 81... Bc2
{[%clk 0:00:27.7]} 82. Nd4 {[%clk 0:00:11.9]} 82... Ba4 {[%clk 0:00:27.6]} 83.
Nf3 {[%clk 0:00:11.9]} 83... Bc6 {[%clk 0:00:28.1]} 84. Nd4 {[%clk 0:00:13]}
84... Bd5 {[%clk 0:00:29.2]} 85. Ne2 {[%clk 0:00:14.4]} 85... Ke7 {[%clk
0:00:29.5]} 86. Kd4 {[%clk 0:00:15.6]} 86... Bc6 {[%clk 0:00:28.9]} 87. Ng3
{[%clk 0:00:15.7]} 87... Bd7 {[%clk 0:00:28.7]} 88. Ne4 {[%clk 0:00:16.3]} 88...
Kf7 {[%clk 0:00:29.4]} 89. Nd6+ {[%clk 0:00:15.2]} 89... Kg6 {[%clk 0:00:30.1]}
90. Ke3 {[%clk 0:00:15.3]} 90... Kh5 {[%clk 0:00:28.8]} 91. f5 {[%clk
0:00:12.8]} 91... e5 {[%clk 0:00:26.4]} 92. Ne4 {[%clk 0:00:14]} 92... Bxf5
{[%clk 0:00:24.2]} 93. Nxf6+ {[%clk 0:00:15.3]} 93... Kg6 {[%clk 0:00:25.3]} 94.
Nd5 {[%clk 0:00:16.6]} 94... Kf7 {[%clk 0:00:25.9]} 95. Nb6 {[%clk 0:00:17]}
95... Ke6 {[%clk 0:00:26.9]} 96. Nc4 {[%clk 0:00:18.1]} 96... Kd5 {[%clk
0:00:27.3]} 97. Nxe5 {[%clk 0:00:19.4]} 97... Kxe5 {[%clk 0:00:28.2]} 1/2-1/2

[Event "*** Titled Tuesday Blitz"]
[Site "Chess.com"]
[Date "2018.08.07"]
[Round "2"]
[White "Alexander_Moskalenko"]
[Black "nailbeshirli"]
[Result "1-0"]
[WhiteElo "2836"]
[BlackElo "2519"]
[TimeControl "180+2"]
[EndTime "13:25:44 PDT"]
[Termination "Alexander_Moskalenko won by resignation"]

1. e4 {[%clk 0:03:01.9]} 1... c5 {[%clk 0:02:53.1]} 2. Nf3 {[%clk 0:03:02.6]}
2... Nf6 {[%clk 0:02:53.9]} 3. Nc3 {[%clk 0:02:59.1]} 3... d6 {[%clk 0:02:55.1]}
4. d4 {[%clk 0:02:59.4]} 4... cxd4 {[%clk 0:02:57]} 5. Nxd4 {[%clk 0:03:01.3]}
5... Nc6 {[%clk 0:02:58.5]} 6. f3 {[%clk 0:02:57.6]} 6... e5 {[%clk 0:02:59]} 7.
Nb3 {[%clk 0:02:57.8]} 7... Be7 {[%clk 0:02:54.7]} 8. Be3 {[%clk 0:02:59.2]}
8... O-O {[%clk 0:02:54.5]} 9. Qd2 {[%clk 0:03:00.7]} 9... Be6 {[%clk
0:02:55.8]} 10. O-O-O {[%clk 0:03:02.1]} 10... a5 {[%clk 0:02:57.4]} 11. Bb5
{[%clk 0:03:03.6]} 11... Na7 {[%clk 0:02:57.1]} 12. Bxa7 {[%clk 0:03:03]} 12...
Rxa7 {[%clk 0:02:58.2]} 13. g4 {[%clk 0:03:02.5]} 13... Qc7 {[%clk 0:02:36.9]}
14. h4 {[%clk 0:02:55.9]} 14... Nd7 {[%clk 0:02:36]} 15. Kb1 {[%clk 0:02:41.5]}
15... a4 {[%clk 0:02:15.6]} 16. Bxa4 {[%clk 0:02:21.5]} 16... Nc5 {[%clk
0:01:37.3]} 17. Nxc5 {[%clk 0:01:55.7]} 17... dxc5 {[%clk 0:01:33]} 18. Bb5
{[%clk 0:00:36.7]} 18... Rd8 {[%clk 0:00:58.4]} 19. Qe2 {[%clk 0:00:30.5]} 19...
Rd4 {[%clk 0:00:57.7]} 20. Rxd4 {[%clk 0:00:24.4]} 20... cxd4 {[%clk 0:00:47.6]}
21. Nd5 {[%clk 0:00:26.3]} 21... Qc5 {[%clk 0:00:24.6]} 22. Bc4 {[%clk
0:00:18.9]} 22... Bd6 {[%clk 0:00:20.7]} 23. Bb3 {[%clk 0:00:19.6]} 23... b5
{[%clk 0:00:21.7]} 24. g5 {[%clk 0:00:19.8]} 24... Ra8 {[%clk 0:00:16.2]} 25. h5
{[%clk 0:00:20.6]} 25... Re8 {[%clk 0:00:13.1]} 26. Qg2 {[%clk 0:00:20.4]} 26...
Qc8 {[%clk 0:00:10.8]} 27. g6 {[%clk 0:00:21.2]} 27... fxg6 {[%clk 0:00:11.1]}
28. hxg6 {[%clk 0:00:22.4]} 28... h6 {[%clk 0:00:12.8]} 29. Qe2 {[%clk
0:00:22.8]} 29... Qd7 {[%clk 0:00:13.4]} 30. Nb6 {[%clk 0:00:22.5]} 30... Qc6
{[%clk 0:00:14.9]} 31. Nd5 {[%clk 0:00:21.2]} 31... Kh8 {[%clk 0:00:16.7]} 32.
a3 {[%clk 0:00:22.2]} 32... Kg8 {[%clk 0:00:17.8]} 33. Qd2 {[%clk 0:00:23.6]}
33... Rf8 {[%clk 0:00:18.4]} 34. Qg2 {[%clk 0:00:18.2]} 34... Qd7 {[%clk
0:00:19.1]} 35. Rh5 {[%clk 0:00:17.2]} 35... Bb8 {[%clk 0:00:18.3]} 36. Qg3
{[%clk 0:00:16.4]} 36... Bxd5 {[%clk 0:00:19]} 37. Bxd5+ {[%clk 0:00:16.7]}
37... Kh8 {[%clk 0:00:20.9]} 38. Qg2 {[%clk 0:00:16.7]} 38... Rf6 {[%clk
0:00:21.6]} 39. Bf7 {[%clk 0:00:16.3]} 39... Bd6 {[%clk 0:00:22]} 40. Rh1 {[%clk
0:00:16.9]} 40... Bf8 {[%clk 0:00:23.4]} 41. Qe2 {[%clk 0:00:17.4]} 41... Qc6
{[%clk 0:00:24]} 42. Qd3 {[%clk 0:00:18.5]} 42... Qc5 {[%clk 0:00:25.3]} 43. Rc1
{[%clk 0:00:18.9]} 43... b4 {[%clk 0:00:26.6]} 44. a4 {[%clk 0:00:19.4]} 44...
Qa5 {[%clk 0:00:27.1]} 45. Qb3 {[%clk 0:00:20.5]} 45... Qb6 {[%clk 0:00:27.5]}
46. Rh1 {[%clk 0:00:20.8]} 46... Qc5 {[%clk 0:00:22.5]} 47. Rf1 {[%clk
0:00:19.8]} 47... Rf4 {[%clk 0:00:23.6]} 48. Qe6 {[%clk 0:00:17.7]} 48... Qe7
{[%clk 0:00:25.1]} 49. Qxe7 {[%clk 0:00:18.3]} 49... Bxe7 {[%clk 0:00:26.3]} 50.
a5 {[%clk 0:00:20.2]} 50... Bc5 {[%clk 0:00:26.6]} 51. Ka2 {[%clk 0:00:21.4]}
51... h5 {[%clk 0:00:27.8]} 52. Kb3 {[%clk 0:00:22.8]} 52... h4 {[%clk 0:00:29]}
53. Kc4 {[%clk 0:00:24.4]} 53... Ba7 {[%clk 0:00:25.9]} 54. Be6 {[%clk
0:00:25.5]} 54... Rf6 {[%clk 0:00:26.5]} 55. Bf5 {[%clk 0:00:26.7]} 55... Rc6+
{[%clk 0:00:27.7]} 56. Kb3 {[%clk 0:00:27.5]} 56... Bc5 {[%clk 0:00:28.8]} 57.
Rh1 {[%clk 0:00:28.5]} 57... Be7 {[%clk 0:00:30.1]} 58. Ra1 {[%clk 0:00:26]}
58... Rc7 {[%clk 0:00:27.8]} 59. a6 {[%clk 0:00:27.1]} 59... Ra7 {[%clk
0:00:29.4]} 60. Kc4 {[%clk 0:00:28.6]} 60... Rc7+ {[%clk 0:00:30.2]} 61. Kb5
{[%clk 0:00:29.8]} 61... Bc5 {[%clk 0:00:31.5]} 62. Rh1 {[%clk 0:00:29.3]} 62...
Kg8 {[%clk 0:00:32]} 63. Rxh4 {[%clk 0:00:29.4]} 63... Ba7 {[%clk 0:00:31.6]}
64. Be6+ {[%clk 0:00:21.4]} 64... Kf8 {[%clk 0:00:32.7]} 65. Bb3 {[%clk
0:00:22.6]} 65... Ke7 {[%clk 0:00:29.5]} 66. f4 {[%clk 0:00:22.2]} 66... Kf6
{[%clk 0:00:24.2]} 67. f5 {[%clk 0:00:23.4]} 67... Rc8 {[%clk 0:00:20.2]} 68.
Kxb4 {[%clk 0:00:23.4]} 68... Rb8+ {[%clk 0:00:20.8]} 69. Ka4 {[%clk 0:00:24]}
69... Rb6 {[%clk 0:00:20.9]} 70. Ka5 {[%clk 0:00:23.7]} 70... Rb8 {[%clk
0:00:22]} 71. Rh1 {[%clk 0:00:22.8]} 71... d3 {[%clk 0:00:23.5]} 72. Rd1 {[%clk
0:00:16]} 72... dxc2 {[%clk 0:00:24.9]} 73. Bxc2 {[%clk 0:00:17.9]} 73... Rxb2
{[%clk 0:00:26.3]} 74. Rd6+ {[%clk 0:00:18.5]} 74... Kg5 {[%clk 0:00:27.1]} 75.
Rc6 {[%clk 0:00:20.4]} 75... Bd4 {[%clk 0:00:26.9]} 76. Ka4 {[%clk 0:00:21.6]}
76... Kh6 {[%clk 0:00:27.2]} 77. Bb3 {[%clk 0:00:22.5]} 77... Rb1 {[%clk
0:00:28.2]} 78. Bc4 {[%clk 0:00:22.3]} 78... Kg5 {[%clk 0:00:28.2]} 79. Rc7
{[%clk 0:00:22.2]} 79... Rc1 {[%clk 0:00:24.9]} 80. Kb5 {[%clk 0:00:21.4]} 80...
Rb1+ {[%clk 0:00:25]} 81. Kc6 {[%clk 0:00:21.8]} 81... Rc1 {[%clk 0:00:21.7]}
82. Kd5 {[%clk 0:00:22.5]} 82... Kh6 {[%clk 0:00:19.1]} 83. Ke6 {[%clk 0:00:19]}
83... Bb6 {[%clk 0:00:15.3]} 84. Rc8 {[%clk 0:00:19.7]} 84... Bd4 {[%clk
0:00:15.7]} 85. Kf7 {[%clk 0:00:20.8]} 85... Be3 {[%clk 0:00:10.4]} 86. f6
{[%clk 0:00:20.9]} 86... Rc2 {[%clk 0:00:03.6]} 87. Rh8+ {[%clk 0:00:16.7]}
87... Kg5 {[%clk 0:00:05.1]} 88. fxg7 {[%clk 0:00:18.6]} 88... Rxc4 {[%clk
0:00:06.3]} 89. g8=Q {[%clk 0:00:19.2]} 89... Rc7+ {[%clk 0:00:07.5]} 90. Ke6
{[%clk 0:00:20.7]} 1-0

[Event "*** Titled Tuesday Blitz"]
[Site "Chess.com"]
[Date "2018.08.07"]
[Round "3"]
[White "KRASAVCHIK2002"]
[Black "orrbaverlekszarnyon"]
[Result "0-1"]
[WhiteElo "2189"]
[BlackElo "2338"]
[TimeControl "180+2"]
[EndTime "13:29:58 PDT"]
[Termination "orrbaverlekszarnyon won by resignation"]

1. e4 {[%clk 0:03:01.9]} 1... c5 {[%clk 0:03:00.7]} 2. Nf3 {[%clk 0:02:58.1]}
2... d6 {[%clk 0:03:01.5]} 3. d4 {[%clk 0:02:58.4]} 3... cxd4 {[%clk 0:03:03.4]}
4. Nxd4 {[%clk 0:02:59.6]} 4... Nf6 {[%clk 0:03:04.7]} 5. Nc3 {[%clk 0:03:01]}
5... g6 {[%clk 0:03:06.2]} 6. Be3 {[%clk 0:03:00.6]} 6... Bg7 {[%clk 0:03:07.5]}
7. f3 {[%clk 0:03:02]} 7... O-O {[%clk 0:03:08.8]} 8. Qd2 {[%clk 0:03:02.8]}
8... Nc6 {[%clk 0:03:09.5]} 9. O-O-O {[%clk 0:03:01.7]} 9... d5 {[%clk
0:03:10.8]} 10. exd5 {[%clk 0:03:01.9]} 10... Nxd5 {[%clk 0:03:12.7]} 11. Nxc6
{[%clk 0:03:03]} 11... bxc6 {[%clk 0:03:14.6]} 12. Nxd5 {[%clk 0:03:03.9]} 12...
cxd5 {[%clk 0:03:15.4]} 13. Bh6 {[%clk 0:03:05]} 13... Bxh6 {[%clk 0:02:59.9]}
14. Qxh6 {[%clk 0:03:04.1]} 14... Qa5 {[%clk 0:03:00.8]} 15. Kb1 {[%clk
0:03:04.7]} 15... Bf5 {[%clk 0:02:58.1]} 16. Bd3 {[%clk 0:03:02.2]} 16... Bxd3
{[%clk 0:02:58.1]} 17. Rxd3 {[%clk 0:03:02.7]} 17... Rfc8 {[%clk 0:02:58.9]} 18.
h4 {[%clk 0:02:59.1]} 18... Rab8 {[%clk 0:02:26.7]} 19. b3 {[%clk 0:02:31.2]}
19... Qc5 {[%clk 0:02:26.3]} 20. Rd2 {[%clk 0:02:13.7]} 20... e6 {[%clk
0:01:46.7]} 21. h5 {[%clk 0:02:13.1]} 21... Qf8 {[%clk 0:01:47.5]} 22. hxg6
{[%clk 0:02:12.6]} 22... Qxh6 {[%clk 0:01:48.4]} 23. gxf7+ {[%clk 0:02:11]}
23... Kg7 {[%clk 0:01:47.8]} 0-1

[Event "*** Titled Tuesday Blitz"]
[Site "Chess.com"]
[Date "2018.08.07"]
[Round "3"]
[White "fidetrainerNET"]
[Black "FearNoEvil12"]
[Result "1-0"]
[WhiteElo "1920"]
[BlackElo "1934"]
[TimeControl "180+2"]
[EndTime "13:30:38 PDT"]
[Termination "fidetrainerNET won by resignation"]

1. d4 {[%clk 0:03:01.9]} 1... b5 {[%clk 0:03:00.6]} 2. e4 {[%clk 0:03:00.8]}
2... a6 {[%clk 0:03:01.3]} 3. a4 {[%clk 0:03:00.9]} 3... b4 {[%clk 0:03:01.5]}
4. Bd3 {[%clk 0:03:01.1]} 4... Bb7 {[%clk 0:03:01.5]} 5. Nd2 {[%clk 0:03:01.8]}
5... e6 {[%clk 0:03:02.5]} 6. f4 {[%clk 0:03:02]} 6... c5 {[%clk 0:03:01.8]} 7.
Ngf3 {[%clk 0:03:01]} 7... Qb6 {[%clk 0:03:02.7]} 8. dxc5 {[%clk 0:02:59.5]}
8... Bxc5 {[%clk 0:03:02.3]} 9. Nb3 {[%clk 0:03:01.4]} 9... Bf2+ {[%clk
0:03:01.2]} 10. Ke2 {[%clk 0:03:01.9]} 10... Qa7 {[%clk 0:02:48.1]} 11. a5
{[%clk 0:02:59.9]} 11... Nc6 {[%clk 0:02:46.4]} 12. Rf1 {[%clk 0:02:58.3]} 12...
Bd4 {[%clk 0:02:45.2]} 13. Nfxd4 {[%clk 0:02:56]} 13... Nxd4+ {[%clk 0:02:45.1]}
14. Nxd4 {[%clk 0:02:56.2]} 14... Qxd4 {[%clk 0:02:46.5]} 15. Be3 {[%clk
0:02:53.3]} 15... Qd6 {[%clk 0:02:45.1]} 16. Qd2 {[%clk 0:02:44.6]} 16... Qc6
{[%clk 0:02:38.9]} 17. Qxb4 {[%clk 0:02:43.3]} 17... Ne7 {[%clk 0:02:39]} 18.
Ra3 {[%clk 0:02:39.4]} 18... Qc7 {[%clk 0:02:19.7]} 19. Bb6 {[%clk 0:02:33.6]}
19... Qc8 {[%clk 0:02:18.6]} 20. Rc3 {[%clk 0:02:32.7]} 20... Nc6 {[%clk
0:02:19.1]} 21. Qd6 {[%clk 0:02:33.4]} 21... Qb8 {[%clk 0:02:17.3]} 22. Bc7
{[%clk 0:02:33.8]} 22... Qc8 {[%clk 0:02:18]} 23. f5 {[%clk 0:02:33.6]} 23... e5
{[%clk 0:02:15.8]} 24. f6 {[%clk 0:02:33.8]} 24... gxf6 {[%clk 0:02:15.2]} 25.
Rxf6 {[%clk 0:02:34.1]} 25... Rg8 {[%clk 0:02:14.6]} 26. Kf1 {[%clk 0:02:32.4]}
26... Rg6 {[%clk 0:02:14.1]} 27. Rxc6 {[%clk 0:02:26.7]} 27... Bxc6 {[%clk
0:02:03.3]} 28. Qxe5+ {[%clk 0:02:26.3]} 28... Kf8 {[%clk 0:02:02.4]} 29. Bc4
{[%clk 0:02:19.3]} 29... Rxf6+ {[%clk 0:01:48]} 30. Qxf6 {[%clk 0:02:18.9]}
30... d5 {[%clk 0:01:40.1]} 31. Bd6+ {[%clk 0:02:15.9]} 31... Kg8 {[%clk
0:01:35.2]} 32. Qg5+ {[%clk 0:02:16.3]} 32... Kh8 {[%clk 0:01:32.5]} 33. Be5+
{[%clk 0:02:17.4]} 1-0

[Event "*** Titled Tuesday Blitz"]
[Site "Chess.com"]
[Date "2018.08.07"]
[Round "3"]
[White "Abrito99"]
[Black "Didici"]
[Result "1-0"]
[WhiteElo "2499"]
[BlackElo "2546"]
[TimeControl "180+2"]
[EndTime "13:30:45 PDT"]
[Termination "Abrito99 won by resignation"]

1. e4 {[%clk 0:03:01.7]} 1... e5 {[%clk 0:02:52.1]} 2. Nf3 {[%clk 0:03:02.4]}
2... Nc6 {[%clk 0:02:52.6]} 3. Bc4 {[%clk 0:03:02.7]} 3... Nf6 {[%clk
0:02:53.3]} 4. d3 {[%clk 0:03:04.1]} 4... Be7 {[%clk 0:02:54.5]} 5. O-O {[%clk
0:03:05.5]} 5... O-O {[%clk 0:02:55.9]} 6. Re1 {[%clk 0:03:07.2]} 6... d6 {[%clk
0:02:57.4]} 7. a4 {[%clk 0:03:08.8]} 7... Kh8 {[%clk 0:02:54.8]} 8. h3 {[%clk
0:03:08.2]} 8... Ng8 {[%clk 0:02:53.7]} 9. Nc3 {[%clk 0:03:09.3]} 9... f5 {[%clk
0:02:54.5]} 10. Nd5 {[%clk 0:03:10.3]} 10... Nf6 {[%clk 0:02:55]} 11. Ng5 {[%clk
0:02:29.9]} 11... Ng8 {[%clk 0:00:52.5]} 12. Qh5 {[%clk 0:02:27.2]} 12... Bxg5
{[%clk 0:00:51.5]} 13. Bxg5 {[%clk 0:02:27.6]} 13... Nce7 {[%clk 0:00:51.9]} 14.
Nxe7 {[%clk 0:02:13.7]} 14... Nxe7 {[%clk 0:00:52.4]} 15. Qh4 {[%clk 0:02:15.2]}
15... Re8 {[%clk 0:00:22.8]} 16. Bf7 {[%clk 0:02:14.7]} 1-0

[Event "*** Titled Tuesday Blitz"]
[Site "Chess.com"]
[Date "2018.08.07"]
[Round "3"]
[White "saraswathii"]
[Black "thegreendog"]
[Result "0-1"]
[WhiteElo "2282"]
[BlackElo "2327"]
[TimeControl "180+2"]
[EndTime "13:30:49 PDT"]
[Termination "thegreendog won by resignation"]

1. d4 {[%clk 0:02:53.8]} 1... d5 {[%clk 0:03:00.4]} 2. Bf4 {[%clk 0:02:51.8]}
2... Nf6 {[%clk 0:03:00]} 3. e3 {[%clk 0:02:48.9]} 3... c5 {[%clk 0:02:58.8]} 4.
c3 {[%clk 0:02:49.4]} 4... Nc6 {[%clk 0:02:55.1]} 5. Nf3 {[%clk 0:02:48]} 5...
Bf5 {[%clk 0:02:54.7]} 6. Bd3 {[%clk 0:02:48.4]} 6... Bxd3 {[%clk 0:02:45.2]} 7.
Qxd3 {[%clk 0:02:50.3]} 7... c4 {[%clk 0:02:41.5]} 8. Qc2 {[%clk 0:02:50.5]}
8... Qb6 {[%clk 0:02:41.7]} 9. Nbd2 {[%clk 0:02:50]} 9... Nh5 {[%clk 0:02:38.5]}
10. Bg3 {[%clk 0:02:46.6]} 10... Nxg3 {[%clk 0:02:35]} 11. hxg3 {[%clk
0:02:40.9]} 11... g6 {[%clk 0:02:33.5]} 12. e4 {[%clk 0:02:38.9]} 12... dxe4
{[%clk 0:02:32.4]} 13. Nxe4 {[%clk 0:02:35]} 13... Bg7 {[%clk 0:02:28.6]} 14.
O-O-O {[%clk 0:02:33.9]} 14... O-O {[%clk 0:02:24.4]} 15. Nfg5 {[%clk
0:02:29.9]} 15... h6 {[%clk 0:02:24.8]} 16. Nf3 {[%clk 0:02:30.4]} 16... Rad8
{[%clk 0:02:16.2]} 17. Qd2 {[%clk 0:02:30.5]} 17... f5 {[%clk 0:02:08.3]} 18.
Nc5 {[%clk 0:02:30.4]} 18... Rd6 {[%clk 0:01:43.8]} 19. Rxh6 {[%clk 0:02:28.3]}
19... Qxc5 {[%clk 0:01:34.8]} 20. Rxg6 {[%clk 0:02:09.1]} 20... Qa5 {[%clk
0:01:12.9]} 21. Rxd6 {[%clk 0:01:55.1]} 21... exd6 {[%clk 0:01:14.8]} 22. Kb1
{[%clk 0:01:51.3]} 22... f4 {[%clk 0:01:15.7]} 0-1

[Event "*** Titled Tuesday Blitz"]
[Site "Chess.com"]
[Date "2018.08.07"]
[Round "3"]
[White "guillembaches"]
[Black "WarlordX"]
[Result "1-0"]
[WhiteElo "2236"]
[BlackElo "2365"]
[TimeControl "180+2"]
[EndTime "13:31:05 PDT"]
[Termination "guillembaches won by checkmate"]

1. d4 {[%clk 0:03:01.9]} 1... Nf6 {[%clk 0:02:59.5]} 2. Bf4 {[%clk 0:03:02.3]}
2... d5 {[%clk 0:03:00.2]} 3. e3 {[%clk 0:03:03.1]} 3... Bf5 {[%clk 0:02:58.5]}
4. Bd3 {[%clk 0:03:00.7]} 4... Bxd3 {[%clk 0:02:59.6]} 5. Qxd3 {[%clk
0:03:00.8]} 5... e6 {[%clk 0:03:01.5]} 6. c4 {[%clk 0:02:58.5]} 6... Nbd7 {[%clk
0:02:57.9]} 7. Nc3 {[%clk 0:02:56.8]} 7... Bb4 {[%clk 0:02:58]} 8. Nf3 {[%clk
0:02:54.9]} 8... c6 {[%clk 0:02:58.7]} 9. O-O {[%clk 0:02:55.5]} 9... O-O {[%clk
0:02:59.2]} 10. Ne5 {[%clk 0:02:53]} 10... Nb6 {[%clk 0:02:52.2]} 11. c5 {[%clk
0:02:41.9]} 11... Nbd7 {[%clk 0:02:53]} 12. f3 {[%clk 0:02:33.2]} 12... Nh5
{[%clk 0:02:51.6]} 13. a3 {[%clk 0:02:25]} 13... Ba5 {[%clk 0:02:50.8]} 14. Nxd7
{[%clk 0:02:00]} 14... Nxf4 {[%clk 0:02:51.2]} 15. exf4 {[%clk 0:01:59.3]} 15...
Qxd7 {[%clk 0:02:52.6]} 16. Rae1 {[%clk 0:01:49.4]} 16... Bc7 {[%clk 0:02:50]}
17. g3 {[%clk 0:01:50.1]} 17... a5 {[%clk 0:02:49.4]} 18. Nd1 {[%clk 0:01:46.6]}
18... b6 {[%clk 0:02:49.9]} 19. b4 {[%clk 0:01:45.3]} 19... axb4 {[%clk
0:02:50.7]} 20. axb4 {[%clk 0:01:47.2]} 20... Ra4 {[%clk 0:02:51.5]} 21. Qd2
{[%clk 0:01:34.2]} 21... Rfa8 {[%clk 0:02:48.5]} 22. Nf2 {[%clk 0:01:34.4]}
22... Ra2 {[%clk 0:02:41.9]} 23. Qe3 {[%clk 0:01:32]} 23... R8a4 {[%clk
0:02:41.9]} 24. Nd3 {[%clk 0:01:32.5]} 24... R2a3 {[%clk 0:02:41.8]} 25. Qe2
{[%clk 0:01:27.4]} 25... Qc8 {[%clk 0:02:42.5]} 26. f5 {[%clk 0:01:23.3]} 26...
bxc5 {[%clk 0:02:35.6]} 27. Nxc5 {[%clk 0:01:12.8]} 27... Rxb4 {[%clk
0:02:34.7]} 28. fxe6 {[%clk 0:01:13.8]} 28... fxe6 {[%clk 0:02:35.9]} 29. Nxe6
{[%clk 0:01:14.3]} 29... Bb6 {[%clk 0:02:32.7]} 30. Qe5 {[%clk 0:01:10.1]} 30...
Qb7 {[%clk 0:02:16.2]} 31. Nd8 {[%clk 0:01:01.5]} 31... Qd7 {[%clk 0:02:15.5]}
32. Qe8+ {[%clk 0:01:01.5]} 32... Qxe8 {[%clk 0:02:16.8]} 33. Rxe8# {[%clk
0:01:02.4]} 1-0